bitfinex-derivatives/quotes_ETHF0:USTF0_20260131
["timestamp","ask_amount","ask_price","bid_price","bid_amount"]
[1769860418845,4.82106369,2639.2,2638.4,3.76561502]
[1769860419153,1.24558873,2639.3,2638.4,3.76561502]
[1769860419451,4.82166722,2639.2,2638.4,3.76561502]
[1769860419645,1.24558873,2639.3,2638.4,3.77036193]
[1769860419950,4.8216708,2639.2,2638.4,3.77036193]
[1769860420142,1.24558873,2639.3,2638.4,3.77036193]
[1769860420143,4.82279033,2639.1,2638.4,3.77036193]
[1769860420450,1.24558873,2639.3,2638.4,3.77036193]
[1769860420652,4.82279271,2639.2,2638.4,3.77036193]
[1769860420948,4.82279271,2639.1,2638.4,3.77036193]
[1769860421150,1.24558873,2639.3,2638.4,3.77036193]
[1769860421350,4.82501116,2639.2,2638.4,3.77036193]
[1769860421651,4.82501116,2639.1,2638.4,3.77036193]
[1769860421852,1.24558873,2639.3,2638.4,3.77036193]
[1769860422055,4.82506394,2639.2,2638.4,3.77036193]
[1769860422348,4.82506394,2639.1,2638.4,3.77036193]
[1769860422550,1.24558873,2639.3,2638.4,3.77036193]
[1769860422750,4.82661412,2639.2,2638.4,3.77036193]
[1769860422949,4.82661412,2639.1,2638.4,3.77036193]
[1769860423152,1.24558873,2639.3,2638.4,3.77036193]
[1769860423454,4.82705274,2639.2,2638.4,3.77036193]
[1769860423753,4.82705274,2639.1,2638.4,3.77036193]
[1769860423958,1.24558873,2639.3,2638.4,3.77036193]
[1769860424251,4.82703134,2639.2,2638.4,3.77036193]
[1769860424456,4.82703134,2639.1,2638.4,3.77036193]
[1769860424754,4.82703134,2639.0,2638.4,3.77036193]
[1769860424949,1.24558873,2639.3,2638.4,3.77036193]
[1769860425155,39.6611964,2639.3,2638.4,3.77036193]
[1769860425452,4.82310864,2639.2,2638.4,3.77036193]
[1769860427253,5.93506406,2639.2,2638.4,3.77036193]
[1769860427451,4.82310864,2639.1,2638.4,3.77036193]
[1769860433159,34.70445445,2639.2,2638.4,3.77036193]
[1769860433160,4.82310864,2639.0,2638.4,3.77036193]
[1769860433362,4.82310864,2638.9,2638.4,3.77036193]
[1769860433549,1.08309691,2639.1,2638.4,0.00474691]
[1769860433760,1.08309691,2639.1,2636.5,6.364]
[1769860433761,1.08309691,2638.4,2636.6,3.79051216]
[1769860433950,12.8152925,2638.3,2636.6,3.79051216]
[1769860434260,4.8392925,2638.2,2636.6,3.79051216]
[1769860434560,4.8392925,2638.1,2636.6,3.79051216]
[1769860434760,4.8392925,2638.0,2636.6,3.79530629]
[1769860434951,42.86887317,2638.3,2636.6,3.79530629]
[1769860435256,4.83591759,2638.2,2637.1,0.18991]
[1769860435456,4.83591759,2638.1,2637.2,3.79051216]
[1769860435756,9.05043869,2638.3,2637.2,3.79051216]
[1769860435958,4.83387588,2638.2,2637.2,3.79051216]
[1769860436158,4.83387588,2638.1,2637.2,3.79051216]
[1769860436358,9.05043869,2638.3,2637.2,3.79051216]
[1769860436661,4.83196618,2638.2,2637.2,3.79051216]
[1769860436859,4.83196618,2638.1,2637.2,3.79051216]
[1769860437060,9.05043869,2638.3,2637.2,3.79051216]
[1769860437263,4.83024174,2638.2,2637.2,3.79051216]
[1769860437461,9.05043869,2638.3,2637.2,3.79051216]
[1769860437662,1.11610798,2637.9,2636.8,3.79051216]
[1769860437856,4.83069467,2637.8,2636.8,3.79051216]
[1769860438056,12.82069467,2637.7,2636.8,3.79051216]
[1769860438258,7.99,2637.7,2636.8,3.79051216]
[1769860439350,9.11037165,2637.7,2636.8,3.79051216]
[1769860440954,7.99,2637.7,2636.8,3.79051216]
[1769860441361,0.00425609,2637.9,2636.8,3.79051216]
[1769860441562,7.99825609,2637.9,2636.8,3.98044216]
[1769860442964,0.00425609,2637.9,2636.8,3.98044216]
[1769860447166,1.15275487,2637.9,2636.8,3.79051216]
[1769860449365,1.13101833,2637.7,2636.8,3.79051216]
[1769860451572,0.00425609,2637.9,2636.8,3.79051216]
[1769860452067,7.964,2637.8,2636.8,3.79051216]
[1769860452671,9.09310871,2637.8,2636.8,3.79051216]
[1769860452871,1.12910871,2637.7,2636.8,3.79051216]
[1769860453370,1.12910871,2637.7,2636.6,0.00479413]
[1769860453670,1.11148343,2637.5,2636.6,0.00479413]
[1769860454761,7.964,2637.8,2636.6,3.82699166]
[1769860454962,1.11148343,2637.6,2636.6,3.82699166]
[1769860456071,1.01931967,2637.4,2636.6,3.82699166]
[1769860456369,7.967,2637.5,2636.6,3.82699166]
[1769860458974,1.06258742,2637.6,2636.6,3.82699166]
[1769860459173,7.974,2637.4,2636.6,3.82699166]
[1769860462080,34.84860296,2637.8,2636.6,3.82699166]
[1769860462381,46.62986973,2637.7,2636.6,3.82699166]
[1769860462570,4.83543525,2637.6,2636.6,3.82699166]
[1769860463171,38.65386973,2637.6,2636.6,3.82699166]
[1769860465174,4.83543525,2637.5,2636.6,3.82699166]
[1769860468297,12.86743525,2637.5,2636.6,3.82699166]
[1769860468583,4.83543525,2637.4,2636.6,3.82699166]
[1769860472283,2.25803133,2637.8,2636.8,3.82219753]
[1769860472481,2.26228742,2637.9,2636.8,3.82219753]
[1769860472682,0.00425609,2637.9,2636.8,3.82219753]
[1769860474876,0.00425609,2637.9,2636.8,4.01212753]
[1769860476793,0.00425609,2637.9,2637.0,3.86496207]
[1769860477090,0.00425609,2637.9,2637.0,4.05488207]
[1769860480598,33.81843448,2638.4,2636.6,0.00479413]
[1769860480599,2.25803133,2638.5,2637.6,4.06171721]
[1769860480789,5.97331171,2638.8,2637.8,3.87184721]
[1769860480993,3.71528038,2638.7,2637.8,3.87184721]
[1769860481599,3.71949763,2638.7,2637.8,3.87184721]
[1769860483506,0.00421725,2638.7,2637.8,3.87184721]
[1769860486506,0.00421725,2638.7,2638.0,3.87184721]
[1769860486708,3.71528038,2639.3,2638.0,4.06168721]
[1769860487205,10.95833911,2639.7,2638.0,4.06168721]
[1769860487206,3.71528038,2640.2,2639.1,3.86369228]
[1769860487399,3.72202553,2639.8,2638.2,0.18983]
[1769860487597,1.16315111,2639.5,2638.3,0.18982]
[1769860487797,3.71528038,2639.7,2638.3,0.18982]
[1769860488005,0.00994347,2639.8,2638.5,1.16315111]
[1769860488310,0.00994347,2639.8,2638.9,0.18978]
[1769860488511,3.71528038,2640.3,2639.0,0.18977]
[1769860489310,3.71528038,2640.2,2639.1,3.87184721]
[1769860489507,3.71857643,2640.2,2639.1,3.87184721]
[1769860491212,0.00329605,2640.2,2639.1,3.87184721]
[1769860493719,3.71857643,2640.2,2639.1,3.87184721]
[1769860494008,3.71528038,2640.0,2639.1,3.87184721]
[1769860494210,4.87843149,2639.8,2639.1,3.87184721]
[1769860494407,3.71528038,2639.7,2639.1,3.87184721]
[1769860495712,3.71528038,2639.7,2638.6,0.1898]
[1769860495713,3.71528038,2639.7,2638.7,3.87184721]
[1769860497712,3.71528038,2640.0,2638.7,3.87184721]
[1769860497915,3.71528038,2640.0,2638.9,3.87184721]
[1769860498518,3.71528038,2640.1,2638.9,4.06162721]
[1769860499011,1.16315111,2639.9,2638.9,4.06162721]
[1769860499214,3.71528038,2639.8,2638.9,4.06162721]
[1769860502209,1.16315111,2639.6,2638.9,4.06162721]
[1769860502415,3.71528038,2639.5,2638.7,3.87184721]
[1769860503913,1.16315111,2639.3,2638.4,3.87184721]
[1769860504120,1.16315111,2639.0,2638.4,3.87184721]
[1769860504320,3.71528038,2639.2,2638.4,3.87184721]
[1769860508122,2.224,2639.7,2638.6,3.79286037]
[1769860508823,4.9629242,2639.8,2638.6,3.79286037]
[1769860509523,4.9629242,2639.8,2638.6,3.98266037]
[1769860510018,3.79977309,2640.0,2638.8,3.98265037]
[1769860510515,1.16315111,2640.1,2638.8,3.98265037]
[1769860510716,3.80306914,2640.2,2639.0,3.79286037]
[1769860510925,4.9629242,2640.1,2639.0,3.79286037]
[1769860511218,3.79977309,2640.0,2639.0,3.79286037]
[1769860511415,3.79977309,2639.7,2639.0,3.79286037]
[1769860512120,1.16315111,2639.8,2639.0,3.79286037]
[1769860513024,4.9629242,2639.8,2639.0,3.79286037]
[1769860513322,4.74410587,2639.7,2639.0,3.79286037]
[1769860513523,4.9629242,2639.8,2639.0,3.79286037]
[1769860513722,4.74410462,2639.7,2639.0,3.79286037]
[1769860514023,4.9629242,2639.8,2639.0,3.79286037]
[1769860514221,4.74362365,2639.7,2639.0,3.79286037]
[1769860514521,1.16315111,2639.8,2639.0,3.79286037]
[1769860514724,4.74603971,2639.7,2639.0,3.79286037]
[1769860514921,1.16315111,2639.8,2639.0,3.79286037]
[1769860515118,4.73278611,2639.7,2639.0,3.79286037]
[1769860515320,1.16315111,2639.8,2639.0,3.79286037]
[1769860515520,4.73526499,2639.7,2639.0,3.79286037]
[1769860515720,1.16315111,2639.8,2639.0,3.79286037]
[1769860515915,4.73526168,2639.7,2639.0,3.79286037]
[1769860516113,1.16315111,2639.8,2639.0,3.79286037]
[1769860516320,4.73846582,2639.7,2639.0,3.79286037]
[1769860516521,1.16315111,2639.8,2639.0,3.79286037]
[1769860516728,4.73846591,2639.7,2639.0,3.79286037]
[1769860516924,1.16315111,2639.8,2639.0,3.79286037]
[1769860517120,4.73846641,2639.7,2639.0,3.79286037]
[1769860517428,4.9629242,2639.8,2639.0,3.79286037]
[1769860517626,4.73948034,2639.7,2639.0,3.79286037]
[1769860517826,4.9629242,2639.8,2639.0,3.79286037]
[1769860518130,4.73947609,2639.7,2639.0,3.79286037]
[1769860518319,4.9629242,2639.8,2639.0,3.79286037]
[1769860518521,4.73952434,2639.7,2639.0,3.79286037]
[1769860518826,4.9629242,2639.8,2639.0,3.79286037]
[1769860519028,4.73952216,2639.7,2639.0,3.79286037]
[1769860519220,4.9629242,2639.8,2639.0,3.79286037]
[1769860519521,3.79977309,2639.4,2638.5,3.79286037]
[1769860520427,4.73968181,2639.3,2638.5,3.79286037]
[1769860520630,3.79977309,2639.3,2638.5,3.79286037]
[1769860522428,7.22095553,2639.5,2638.5,3.79286037]
[1769860522728,4.74174774,2639.4,2638.5,3.79286037]
[1769860522919,4.74174774,2639.3,2638.5,3.79286037]
[1769860523115,6.05780442,2639.5,2638.5,3.79286037]
[1769860523326,4.74255243,2639.4,2638.5,3.79286037]
[1769860523529,4.74255243,2639.3,2638.5,3.79286037]
[1769860523727,6.05780442,2639.5,2638.5,3.79286037]
[1769860523929,4.74249076,2639.4,2638.5,3.79286037]
[1769860524125,4.74249076,2639.3,2638.5,3.79286037]
[1769860524315,6.05780442,2639.5,2638.5,3.79286037]
[1769860524520,4.74282477,2639.4,2638.5,3.79286037]
[1769860524715,4.74282477,2639.3,2638.5,3.79286037]
[1769860524924,6.05780442,2639.5,2638.5,3.79286037]
[1769860525116,4.74280887,2639.4,2638.5,3.79286037]
[1769860525321,6.05780442,2639.5,2638.5,3.79286037]
[1769860525322,4.74280887,2639.3,2638.5,3.79286037]
[1769860525528,6.05780442,2639.5,2638.5,3.79286037]
[1769860525725,4.74285069,2639.4,2638.5,3.79286037]
[1769860525928,4.74285069,2639.3,2638.5,3.79286037]
[1769860526125,6.05780442,2639.5,2638.5,3.79286037]
[1769860526329,4.74276573,2639.4,2638.5,3.79286037]
[1769860526530,4.74276573,2639.3,2638.5,3.79286037]
[1769860526833,3.79977309,2639.5,2638.5,3.79286037]
[1769860527032,4.74292409,2639.4,2638.5,3.79286037]
[1769860527328,3.79977309,2639.5,2638.5,3.79286037]
[1769860527527,4.74283048,2639.4,2638.5,3.79286037]
[1769860527729,3.79977309,2639.5,2638.5,3.79286037]
[1769860527932,4.74340533,2639.4,2638.5,3.79286037]
[1769860528228,3.79977309,2639.5,2638.5,3.79286037]
[1769860528430,4.74356325,2639.4,2638.5,3.79286037]
[1769860528728,3.79977309,2639.5,2638.5,3.79286037]
[1769860528927,4.74356243,2639.4,2638.5,3.79286037]
[1769860529127,3.79977309,2639.5,2638.5,3.79286037]
[1769860529430,4.74379737,2639.4,2638.5,3.79286037]
[1769860529733,3.79977309,2639.5,2638.5,3.79286037]
[1769860529920,4.74379856,2639.4,2638.5,3.79286037]
[1769860530117,2.25803133,2639.6,2638.5,3.79286037]
[1769860530329,4.74383122,2639.6,2638.6,3.98266037]
[1769860530629,7.999,2639.8,2638.6,3.98266037]
[1769860530824,4.74452806,2639.7,2638.6,3.98266037]
[1769860531128,11.79877309,2639.8,2638.6,3.98266037]
[1769860531425,4.74452672,2639.7,2638.8,3.79286037]
[1769860531730,7.999,2639.8,2638.8,3.98265037]
[1769860533532,6.05780442,2640.0,2638.8,3.98265037]
[1769860533829,4.74468417,2639.9,2638.8,3.98265037]
[1769860534030,3.79977309,2640.0,2638.8,3.98265037]
[1769860534230,4.74467994,2639.9,2638.8,3.98265037]
[1769860534425,3.79977309,2640.0,2638.8,3.98265037]
[1769860534634,4.74474672,2639.9,2638.8,3.98265037]
[1769860534827,3.79977309,2640.0,2638.8,3.98265037]
[1769860535029,4.74474498,2639.9,2638.8,3.98265037]
[1769860535230,3.79977309,2640.0,2638.8,3.98265037]
[1769860535426,4.74489707,2639.9,2638.8,3.98265037]
[1769860535627,3.79977309,2640.0,2638.8,3.98265037]
[1769860535828,4.74489707,2639.9,2638.8,3.98265037]
[1769860536028,3.79977309,2640.0,2638.8,3.98265037]
[1769860536233,4.74490232,2639.9,2638.8,3.98265037]
[1769860536432,3.79977309,2640.0,2638.8,3.98265037]
[1769860536631,4.74683127,2639.9,2638.8,3.98265037]
[1769860536830,3.79977309,2640.0,2638.8,3.98265037]
[1769860537031,4.74703179,2639.9,2638.8,3.98265037]
[1769860537235,3.79977309,2640.0,2638.8,3.98265037]
[1769860537533,3.69818633,2639.8,2638.8,3.98265037]
[1769860543342,3.69818633,2639.8,2639.0,3.54297785]
[1769860543543,3.8333103,2640.0,2639.0,3.54297785]
[1769860543845,4.74921705,2639.9,2639.0,3.54297785]
[1769860544139,3.8333103,2640.0,2639.0,3.54297785]
[1769860544336,8.58237581,2639.9,2639.0,3.54297785]
[1769860544541,3.8333103,2639.9,2639.0,3.54297785]
[1769860545443,6.09134163,2640.1,2639.0,3.54297785]
[1769860545645,4.74836237,2640.0,2639.0,3.73274785]
[1769860545941,3.8333103,2640.1,2639.2,3.54297785]
[1769860546942,3.8333103,2640.1,2639.4,3.54297785]
[1769860550245,0.00329605,2640.2,2639.4,3.54297785]
[1769860550442,3.83660635,2640.2,2639.4,3.54297785]
[1769860550945,0.00329605,2640.2,2639.4,3.54297785]
[1769860551850,3.8333103,2640.0,2638.8,3.54297785]
[1769860553346,3.8333103,2639.8,2638.8,3.54297785]
[1769860558649,3.8333103,2639.8,2638.4,3.54297785]
[1769860558955,3.8333103,2639.6,2638.4,3.54297785]
[1769860562660,3.8333103,2639.6,2638.2,0.00348655]
[1769860562661,2.25949989,2639.9,2638.7,3.54297785]
[1769860562861,3.8333103,2639.8,2638.7,3.73276785]
[1769860563060,3.8333103,2639.6,2638.7,3.73276785]
[1769860563658,3.8333103,2639.8,2638.7,3.73276785]
[1769860570667,3.70690545,2639.6,2638.5,3.68899725]
[1769860575765,3.70690545,2639.8,2638.5,3.68899725]
[1769860575972,3.70690545,2639.6,2638.5,3.68899725]
[1769860577067,10.27749989,2640.0,2638.7,3.68899725]
[1769860577269,8.44925762,2639.9,2638.7,3.68899725]
[1769860577465,4.74235217,2639.8,2638.7,3.68899725]
[1769860577666,8.44925762,2639.8,2638.7,3.68899725]
[1769860577972,3.70690545,2639.8,2638.7,3.68899725]
[1769860580968,3.70690545,2639.8,2638.7,3.87878725]
[1769860581168,4.7486879,2639.7,2638.7,3.87878725]
[1769860581369,3.70690545,2639.8,2638.7,3.87878725]
[1769860581575,8.45570755,2639.7,2638.7,3.87878725]
[1769860581774,3.70690545,2639.7,2638.7,3.87878725]
[1769860585477,5.96640534,2639.9,2638.9,3.68899725]
[1769860585778,3.70690545,2639.9,2638.9,3.87877725]
[1769860587475,3.70690545,2639.9,2639.1,3.68899725]
[1769860587780,3.70690545,2640.1,2639.1,3.87875725]
[1769860587982,0.00329605,2640.2,2639.3,3.87874725]
[1769860588277,3.7102015,2640.2,2639.3,0.18975]
[1769860590869,3.7102015,2640.2,2639.3,3.87874725]
[1769860594976,0.00329605,2640.2,2639.3,3.87874725]
[1769860595278,0.00329605,2640.2,2639.5,3.68899725]
[1769860595680,0.00329605,2640.2,2639.5,3.87873725]
[1769860597580,3.89437352,2640.8,2639.7,3.66610536]
[1769860597780,8.63344034,2640.7,2639.7,3.66610536]
[1769860597981,3.89437352,2640.7,2639.7,3.66610536]
[1769860598578,3.89776136,2640.7,2639.7,3.66610536]
[1769860599079,3.89776136,2640.7,2639.7,3.85582536]
[1769860600672,0.00338784,2640.7,2639.7,3.85582536]
[1769860600877,0.00338784,2640.7,2639.9,3.64484389]
[1769860601077,3.72812389,2641.1,2640.0,0.1897]
[1769860601282,3.72812389,2641.2,2640.3,3.64484389]
[1769860602179,3.73127361,2641.2,2640.3,3.64971534]
[1769860606187,3.73127361,2641.2,2640.3,3.83939534]
[1769860606485,0.00314972,2641.2,2640.3,3.83939534]
[1769860606683,3.72812389,2641.5,2640.6,3.64484389]
[1769860606885,3.72812389,2641.8,2640.6,3.64484389]
[1769860607783,3.73220675,2641.8,2640.6,3.64484389]
[1769860608193,3.73220675,2641.8,2640.6,3.83450389]
[1769860610093,3.72812389,2641.7,2640.6,3.83450389]
[1769860610393,3.72812389,2641.4,2640.6,0.18966]
[1769860611486,3.72812389,2641.4,2640.3,3.64971534]
[1769860611687,3.72812389,2641.0,2640.3,0.00487145]
[1769860611890,3.72812389,2641.0,2640.0,0.1897]
[1769860612783,3.72812389,2641.0,2640.0,0.19265118]
[1769860615992,3.72812389,2641.3,2640.0,3.83749507]
[1769860617286,3.72812389,2641.3,2640.1,0.18969]
[1769860617487,3.72812389,2640.7,2640.0,0.00295118]
[1769860625692,3.72812389,2640.7,2639.6,0.18973]
[1769860625896,3.72812389,2640.4,2639.3,3.64484389]
[1769860626698,3.72812389,2640.9,2639.9,3.64484389]
[1769860627197,3.72812389,2640.9,2639.9,3.83455389]
[1769860628407,3.84182703,2641.1,2639.9,3.83455389]
[1769860628790,3.84182703,2641.1,2640.1,3.62317504]
[1769860628994,3.84182703,2641.3,2640.2,3.62317504]
[1769860629195,4.67558367,2641.2,2640.2,3.62317504]
[1769860629502,3.84182703,2641.3,2640.2,3.62317504]
[1769860629799,8.51789222,2641.2,2640.2,3.62317504]
[1769860629993,3.84182703,2641.2,2640.2,3.62317504]
[1769860630704,2.25502194,2641.6,2640.5,3.62317504]
[1769860630902,4.67729686,2641.6,2640.5,3.62317504]
[1769860631095,3.84182703,2641.5,2640.5,3.62317504]
[1769860631400,3.84182703,2641.7,2640.5,3.62317504]
[1769860631602,3.84590989,2641.8,2640.8,3.62317504]
[1769860634707,0.00408286,2641.8,2640.8,3.81281504]
[1769860635403,0.00408286,2641.8,2640.7,3.38383512]
[1769860635404,0.00408286,2641.8,2641.1,3.62317504]
[1769860635599,3.84182703,2642.2,2641.1,3.62317504]
[1769860635799,4.6772212,2642.1,2641.1,3.62317504]
[1769860635999,3.84182703,2642.2,2641.1,3.62317504]
[1769860636607,3.84665005,2642.2,2641.1,3.62317504]
[1769860636808,3.84182703,2642.1,2641.1,3.62317504]
[1769860637006,3.84182703,2642.1,2641.0,0.18963]
[1769860637607,3.84182703,2642.1,2641.0,3.81280504]
[1769860638003,3.84182703,2641.8,2640.7,3.62317504]
[1769860640203,3.84182703,2641.8,2641.0,3.62317504]
[1769860648304,3.84182703,2641.8,2640.9,0.18964]
[1769860649110,3.84182703,2641.8,2640.9,3.81281504]
[1769860650207,3.84182703,2642.1,2640.9,3.81281504]
[1769860652010,3.84182703,2641.5,2640.4,3.62317504]
[1769860654510,3.84182703,2641.5,2640.3,0.18968]
[1769860656111,3.84182703,2641.3,2640.3,0.18968]
[1769860656613,3.84182703,2641.3,2640.3,3.81285504]
[1769860656918,3.41585706,2641.6,2640.4,3.79148972]
[1769860656919,3.68676776,2641.6,2640.4,3.79148972]
[1769860657214,3.68676776,2641.4,2640.4,3.79148972]
[1769860660214,3.84628097,2641.2,2640.3,0.18968]
[1769860663107,3.84628097,2641.2,2640.3,3.85738667]
[1769860663914,3.84628097,2641.5,2640.3,3.85738667]
[1769860664220,7.968,2641.9,2640.7,3.66770667]
[1769860664513,3.84628097,2641.8,2640.7,3.66770667]
[1769860672321,3.84628097,2641.8,2640.7,3.85735667]
[1769860673325,7.63628097,2642.0,2640.9,3.66770667]
[1769860673622,3.84628097,2641.9,2640.9,3.66770667]
[1769860693132,4.67523447,2641.8,2640.9,3.66770667]
[1769860693330,3.84628097,2641.9,2640.9,3.66770667]
[1769860693633,4.67500038,2641.8,2640.9,3.66770667]
[1769860693831,3.84628097,2641.9,2640.9,3.66770667]
[1769860694030,4.67428691,2641.8,2640.9,3.66770667]
[1769860694233,3.84628097,2641.9,2640.9,3.66770667]
[1769860694433,4.67692441,2641.8,2640.9,3.66770667]
[1769860694633,3.84628097,2641.9,2640.9,3.66770667]
[1769860694933,4.67638119,2641.8,2640.9,3.66770667]
[1769860695234,3.84628097,2641.9,2640.9,3.66770667]
[1769860695427,4.67642705,2641.8,2640.9,3.66770667]
[1769860695632,3.66492721,2641.9,2641.0,0.18963]
[1769860695833,3.66492721,2641.7,2641.0,0.18963]
[1769860696032,3.66492721,2641.7,2641.0,4.07242698]
[1769860700247,3.66492721,2641.7,2640.5,3.88279698]
[1769860700442,3.66492721,2641.5,2640.5,3.88279698]
[1769860700742,3.66492721,2641.3,2640.5,3.88279698]
[1769860702337,3.66492721,2641.3,2640.4,4.07246698]
[1769860702935,5.9288076,2641.7,2640.6,4.07244698]
[1769860703146,5.9288076,2641.9,2640.6,4.07244698]
[1769860703448,4.67319216,2641.8,2640.6,4.07244698]
[1769860703654,4.67319216,2641.7,2640.6,4.07244698]
[1769860703842,5.9288076,2641.9,2640.6,4.07244698]
[1769860704044,4.67326953,2641.8,2640.6,4.07244698]
[1769860704247,4.67326953,2641.7,2640.6,4.07244698]
[1769860704449,3.66492721,2641.8,2640.6,4.07244698]
[1769860704648,2.26388039,2641.9,2640.6,4.07244698]
[1769860704649,3.66492721,2641.6,2640.6,4.07244698]
[1769860704844,3.66492721,2641.4,2640.6,0.18965]
[1769860705153,3.66492721,2641.4,2640.4,3.88279698]
[1769860705355,3.66492721,2641.2,2640.1,3.88279698]
[1769860707256,3.66492721,2641.0,2640.1,3.88279698]
[1769860708951,3.66492721,2641.0,2639.8,3.88279698]
[1769860709255,3.66492721,2640.8,2639.8,3.88279698]
[1769860712364,13.9158076,2641.3,2639.8,3.88279698]
[1769860712655,11.65192721,2641.3,2640.1,3.88279698]
[1769860713559,3.66492721,2641.2,2640.1,3.88279698]
[1769860713758,3.66492721,2641.2,2640.0,0.1897]
[1769860714258,3.66492721,2641.0,2639.8,3.88279698]
[1769860726669,3.67193405,2640.7,2639.8,3.88279698]
[1769860730963,3.67193405,2640.7,2639.6,3.92930009]
[1769860731173,3.67193405,2640.4,2639.6,3.92930009]
[1769860731970,3.67193405,2640.4,2639.4,0.00674515]
[1769860733277,3.67193405,2640.2,2639.4,0.00674515]
[1769860733478,3.67525416,2640.2,2639.4,0.00674515]
[1769860735582,3.67193405,2639.8,2638.7,3.92930009]
[1769860736478,3.67193405,2639.8,2638.7,3.93211667]
[1769860736978,3.67525416,2640.2,2639.1,3.92930009]
[1769860737179,3.67193405,2640.0,2639.1,3.92930009]
[1769860740866,0.00332011,2640.2,2639.7,3.92930009]
[1769860741072,3.67193405,2640.7,2639.7,3.92930009]
[1769860741271,4.6697705,2640.6,2639.7,3.92930009]
[1769860741472,3.67193405,2640.7,2639.7,3.92930009]
[1769860741780,8.34164135,2640.6,2639.7,3.92930009]
[1769860742080,3.67668767,2640.6,2639.4,3.92930009]
[1769860747891,3.90769735,2640.5,2639.4,3.92930009]
[1769860748392,0.00475362,2640.6,2639.4,3.92930009]
[1769860748588,0.00475362,2640.6,2639.7,3.61372707]
[1769860748785,3.91245097,2640.6,2639.7,3.61372707]
[1769860749192,3.91245097,2640.6,2639.4,3.61372707]
[1769860749793,3.90769735,2640.4,2639.4,3.61372707]
[1769860750688,0.00475362,2640.6,2639.4,3.61372707]
[1769860752192,4.6756509,2640.5,2639.4,3.61372707]
[1769860752399,0.00475362,2640.6,2639.4,3.61372707]
[1769860752598,4.6758317,2640.5,2639.4,3.61372707]
[1769860752795,0.00475362,2640.6,2639.4,3.61372707]
[1769860752998,4.67584216,2640.5,2639.4,3.61372707]
[1769860753190,0.00475362,2640.6,2639.4,3.61372707]
[1769860753392,4.67605032,2640.5,2639.4,3.61372707]
[1769860753694,3.91245097,2640.6,2639.4,3.61372707]
[1769860753896,4.67632337,2640.5,2639.4,3.61372707]
[1769860754096,3.91245097,2640.6,2639.4,3.61372707]
[1769860754295,4.67632184,2640.5,2639.4,3.61372707]
[1769860754495,3.91245097,2640.6,2639.4,3.61372707]
[1769860754699,4.67686766,2640.5,2639.4,3.61372707]
[1769860754997,3.91245097,2640.6,2639.4,3.61372707]
[1769860755297,4.69750456,2640.5,2639.4,3.61372707]
[1769860755502,3.91245097,2640.6,2639.4,3.61372707]
[1769860755699,4.69811015,2640.5,2639.4,3.61372707]
[1769860755999,3.91245097,2640.6,2639.4,3.61372707]
[1769860756201,4.6976607,2640.5,2639.4,3.61372707]
[1769860756396,3.91245097,2640.6,2639.4,3.61372707]
[1769860756698,4.69657205,2640.5,2639.4,3.61372707]
[1769860756899,3.91245097,2640.6,2639.4,3.61372707]
[1769860757098,0.00475362,2640.6,2639.7,4.77484895]
[1769860757306,0.00475362,2640.6,2639.8,3.61372707]
[1769860758197,3.91245097,2640.6,2639.8,3.61372707]
[1769860760505,0.00475362,2640.6,2639.8,3.61372707]
[1769860768911,2.26388039,2641.2,2640.6,3.61372707]
[1769860769103,6.17831834,2641.7,2640.6,3.61372707]
[1769860769302,3.90769735,2641.5,2640.6,3.61372707]
[1769860770006,3.91158031,2641.5,2640.6,3.61821618]
[1769860773515,3.91158031,2641.5,2640.6,0.00448911]
[1769860773812,5.07270219,2641.5,2640.6,0.00448911]
[1769860774013,3.90769735,2641.4,2640.6,0.00448911]
[1769860776011,3.90769735,2641.1,2640.1,3.61372707]
[1769860777010,3.90769735,2641.1,2640.1,3.61816436]
[1769860781320,3.54645167,2641.1,2640.1,3.61816436]
[1769860784524,1.16112188,2641.2,2640.1,3.61816436]
[1769860785421,3.54645167,2641.3,2640.1,3.61816436]
[1769860785723,4.68412141,2641.2,2640.1,3.61816436]
[1769860785925,3.54645167,2641.3,2640.1,3.61816436]
[1769860786119,4.6849872,2641.2,2640.1,3.61816436]
[1769860786318,3.54645167,2641.3,2640.1,3.61816436]
[1769860786517,4.68607363,2641.2,2640.1,3.61816436]
[1769860786714,3.54645167,2641.3,2640.1,3.61816436]
[1769860786918,4.68617443,2641.2,2640.1,3.61816436]
[1769860787118,3.54645167,2641.3,2640.1,3.61816436]
[1769860787318,4.68656805,2641.2,2640.1,3.61816436]
[1769860787519,3.54645167,2641.3,2640.1,3.61816436]
[1769860787726,4.68656837,2641.2,2640.1,3.61816436]
[1769860787925,3.54645167,2641.3,2640.1,3.61816436]
[1769860788118,4.68656905,2641.2,2640.1,3.61816436]
[1769860788318,3.54645167,2641.3,2640.1,3.61816436]
[1769860788624,4.68666822,2641.2,2640.1,3.61816436]
[1769860788825,3.54645167,2641.3,2640.1,3.61816436]
[1769860789026,4.68666706,2641.2,2640.1,3.61816436]
[1769860789322,3.54645167,2641.3,2640.1,3.61816436]
[1769860789526,4.687138,2641.2,2640.1,3.61816436]
[1769860789720,3.54645167,2641.3,2640.1,3.61816436]
[1769860789920,4.68713644,2641.2,2640.1,3.61816436]
[1769860790226,3.54645167,2641.3,2640.1,3.61816436]
[1769860790418,4.68764717,2641.2,2640.1,3.61816436]
[1769860790620,3.54645167,2641.3,2640.1,3.61816436]
[1769860790920,4.68764628,2641.2,2640.1,3.61816436]
[1769860791116,3.54645167,2641.3,2640.1,3.61816436]
[1769860791424,4.68813518,2641.2,2640.1,3.61816436]
[1769860791727,3.54645167,2641.3,2640.1,3.61816436]
[1769860791921,3.54645167,2641.1,2640.1,3.61816436]
[1769860800031,3.54645167,2640.9,2640.1,3.61816436]
[1769860801632,2.26635039,2641.2,2640.1,0.00443729]
[1769860801633,3.54645167,2640.7,2640.1,0.00443729]
[1769860802227,3.54645167,2640.7,2639.7,3.5371282]
[1769860802228,4.69233446,2640.6,2639.7,3.5371282]
[1769860802431,3.54645167,2640.5,2639.7,3.5371282]
[1769860803030,3.54645167,2640.3,2639.0,3.5371282]
[1769860803328,3.54645167,2640.3,2639.7,0.00028215]
[1769860804424,3.54645167,2640.5,2639.7,3.53741035]
[1769860804621,8.23419769,2640.4,2639.7,3.53741035]
[1769860804928,3.54645167,2640.4,2639.7,0.00028215]
[1769860805232,3.54645167,2640.2,2638.8,3.5371282]
[1769860806027,3.54645167,2640.2,2638.8,3.54124817]
[1769860819943,3.74911459,2640.4,2639.0,4.04502802]
[1769860820246,6.49,2640.5,2639.2,3.85525802]
[1769860820440,3.74911459,2640.7,2639.2,3.85525802]
[1769860821646,3.74911459,2640.5,2639.0,3.85525802]
[1769860822346,3.74911459,2640.3,2639.0,3.85525802]
[1769860828446,3.74911459,2640.1,2639.0,3.85525802]
[1769860830751,3.74911459,2639.9,2639.0,3.85525802]
[1769860831345,11.79911459,2640.1,2639.0,3.85525802]
[1769860831546,8.05,2640.1,2639.0,3.85525802]
[1769860832345,8.05,2640.1,2639.0,4.04502802]
[1769860833450,11.79911459,2640.1,2639.0,4.04502802]
[1769860834052,3.74911459,2640.0,2639.0,4.04502802]
[1769860836058,8.26155123,2639.9,2639.0,4.04502802]